bitfinex/quotes_BTCUSD_20250615
["timestamp","ask_amount","ask_price","bid_price","bid_amount"]
[1749948578659,0.82468552,105660.0,105650.0,0.73327778]
[1749948578867,0.82468531,105660.0,105650.0,0.73327778]
[1749948579078,0.82468534,105660.0,105650.0,0.73327778]
[1749948579278,0.83356884,105660.0,105650.0,0.73327778]
[1749948579485,0.80633823,105660.0,105650.0,0.73327778]
[1749948579882,0.81580174,105660.0,105650.0,0.73327778]
[1749948580538,0.82468525,105660.0,105650.0,0.73327778]
[1749948581187,0.83356875,105660.0,105650.0,0.73327778]
[1749948581781,0.81580174,105660.0,105650.0,0.73327778]
[1749948581985,0.83356875,105660.0,105650.0,0.73327778]
[1749948582629,0.82526534,105660.0,105650.0,0.73327778]
[1749948582990,0.81638184,105660.0,105650.0,0.73327778]
[1749948583210,0.84303235,105660.0,105650.0,0.73327778]
[1749948583418,0.82526345,105660.0,105650.0,0.73327778]
[1749948584156,0.81638184,105660.0,105650.0,0.73327778]
[1749948584394,0.82526345,105660.0,105650.0,0.73327778]
[1749948584602,0.82526344,105660.0,105650.0,0.73327778]
[1749948584783,0.81579984,105660.0,105650.0,0.73327778]
[1749948585813,0.81579985,105660.0,105650.0,0.73327778]
[1749948586024,0.80691824,105660.0,105650.0,0.73327778]
[1749948586224,0.81579984,105660.0,105650.0,0.73327778]
[1749948586421,0.80691824,105660.0,105650.0,0.73327778]
[1749948586890,0.81579985,105660.0,105650.0,0.73327778]
[1749948587124,0.80691824,105660.0,105650.0,0.73327778]
[1749948587746,0.81579984,105660.0,105650.0,0.73327778]
[1749948587966,0.80691824,105660.0,105650.0,0.73327778]
[1749948588209,0.81579984,105660.0,105650.0,0.73327778]
[1749948588428,0.80691824,105660.0,105650.0,0.73327778]
[1749948588652,0.81579985,105660.0,105650.0,0.73327778]
[1749948588871,0.80691824,105660.0,105650.0,0.73327778]
[1749948589090,0.81579984,105660.0,105650.0,0.73327778]
[1749948589310,0.80691824,105660.0,105650.0,0.57979778]
[1749948589528,0.81579985,105660.0,105650.0,0.73319778]
[1749948589734,0.80691824,105660.0,105650.0,0.73319778]
[1749948589977,0.81579985,105660.0,105650.0,0.73319778]
[1749948590476,0.80691824,105660.0,105650.0,0.73319778]
[1749948590698,0.81579984,105660.0,105650.0,0.73319778]
[1749948590916,0.35334204,105660.0,105650.0,0.844747]
[1749948591116,0.36280564,105660.0,105650.0,0.844747]
[1749948591322,0.36222365,105660.0,105650.0,0.844747]
[1749948591703,0.36280555,105660.0,105650.0,0.844747]
[1749948591902,0.37168715,105660.0,105650.0,0.844747]
[1749948592205,0.37168715,105660.0,105650.0,0.74859778]
[1749948592405,0.38945417,105660.0,105650.0,0.74859778]
[1749948592566,0.38945606,105660.0,105650.0,0.74859778]
[1749948593019,0.37168905,105660.0,105650.0,0.74859778]
[1749948593407,0.38057256,105660.0,105650.0,0.74859778]
[1749948593607,0.37168905,105660.0,105650.0,0.74859778]
[1749948593813,0.38945606,105660.0,105650.0,0.74859778]
[1749948594275,0.37168905,105660.0,105650.0,0.74859778]
[1749948594475,0.38945606,105660.0,105650.0,0.74859778]
[1749948595320,0.36280555,105660.0,105650.0,0.74859778]
[1749948596128,0.38945606,105660.0,105650.0,0.74859778]
[1749948596906,0.38945605,105660.0,105650.0,0.74859778]
[1749948597351,0.389456,105660.0,105650.0,0.74859778]
[1749948597792,0.36280555,105660.0,105650.0,0.74859778]
[1749948597930,0.38945597,105660.0,105650.0,0.74859778]
[1749948598831,0.37168902,105660.0,105650.0,0.74859778]
[1749948598967,0.38945597,105660.0,105650.0,0.74859778]
[1749948599783,0.37168902,105660.0,105650.0,0.74859778]
[1749948600183,0.38945597,105660.0,105650.0,0.74859778]
[1749948600385,0.37168902,105660.0,105650.0,0.74859778]
[1749948600588,0.38945597,105660.0,105650.0,0.74859778]
[1749948600883,0.3805725,105660.0,105650.0,0.74859778]
[1749948601086,0.36280555,105660.0,105650.0,0.74859778]
[1749948601267,0.3805725,105660.0,105650.0,0.74859778]
[1749948601521,0.38945597,105660.0,105650.0,0.74859778]
[1749948601748,0.36280555,105660.0,105650.0,0.74859778]
[1749948601980,0.38945597,105660.0,105650.0,0.74859778]
[1749948602245,0.37168836,105660.0,105650.0,0.74859778]
[1749948602875,0.37168836,105660.0,105650.0,0.73319778]
[1749948603298,0.36280555,105660.0,105650.0,0.73319778]
[1749948603508,0.36222485,105660.0,105650.0,0.73319778]
[1749948603710,0.37168836,105660.0,105650.0,0.73319778]
[1749948604399,0.36280555,105660.0,105650.0,0.73319778]
[1749948604920,0.37168836,105660.0,105650.0,0.73319778]
[1749948605117,0.36280555,105660.0,105650.0,0.73319778]
[1749948605317,0.37168836,105660.0,105650.0,0.73319778]
[1749948605618,0.36280555,105660.0,105650.0,0.73319778]
[1749948605819,0.36222485,105660.0,105650.0,0.73319778]
[1749948606244,0.35334204,105660.0,105650.0,0.73319778]
[1749948606424,0.36222485,105660.0,105650.0,0.73319778]
[1749948607051,0.35334204,105660.0,105650.0,0.73319778]
[1749948607197,0.36222485,105660.0,105650.0,0.73319778]
[1749948607399,0.35334204,105660.0,105650.0,0.73319778]
[1749948607798,0.36222485,105660.0,105650.0,0.73319778]
[1749948608007,0.35334204,105660.0,105650.0,0.73319778]
[1749948608213,0.36222485,105660.0,105650.0,0.73319778]
[1749948608403,0.35334204,105660.0,105650.0,0.73319778]
[1749948608831,0.36222485,105660.0,105650.0,0.73319778]
[1749948609245,0.35334204,105660.0,105650.0,0.73319778]
[1749948609494,0.36222485,105660.0,105650.0,0.73319778]
[1749948609739,0.35334204,105660.0,105650.0,0.73319778]
[1749948610392,0.36222485,105660.0,105650.0,0.73319778]
[1749948610816,0.35334204,105660.0,105650.0,0.73319778]
[1749948611932,0.36222485,105660.0,105650.0,0.73319778]
[1749948612180,0.35334204,105660.0,105650.0,0.73319778]
[1749948612453,0.36222485,105660.0,105650.0,0.73319778]
[1749948613305,0.36222551,105660.0,105650.0,0.73319778]
[1749948613515,0.37999246,105660.0,105650.0,0.73319778]
[1749948613941,0.37110899,105660.0,105650.0,0.73319778]
[1749948614122,0.37999246,105660.0,105650.0,0.73319778]
[1749948614466,0.37110899,105660.0,105650.0,0.73319778]
[1749948614666,0.37999246,105660.0,105650.0,0.73319778]
[1749948615060,0.35334204,105660.0,105650.0,0.73319778]
[1749948615267,0.37999246,105660.0,105650.0,0.73319778]
[1749948615518,0.37110899,105660.0,105650.0,0.73319778]
[1749948615737,0.36222551,105660.0,105650.0,0.73319778]
[1749948616132,0.35334204,105660.0,105650.0,0.73319778]
[1749948616331,0.37999246,105660.0,105650.0,0.73319778]
[1749948616539,0.36222551,105660.0,105650.0,0.73319778]
[1749948616782,0.37999246,105660.0,105650.0,0.73319778]
[1749948616992,0.36222549,105660.0,105650.0,0.845747]
[1749948617228,0.35334204,105660.0,105650.0,0.74959778]
[1749948617413,0.36222549,105660.0,105650.0,0.74959778]
[1749948617611,0.35334204,105660.0,105650.0,1.19371047]
[1749948617813,0.36222549,105660.0,105650.0,1.19371047]
[1749948618175,0.35334204,105660.0,105650.0,1.19371047]
[1749948618362,0.36222549,105660.0,105650.0,1.19371047]
[1749948619324,0.35334204,105660.0,105650.0,1.19371047]
[1749948619889,0.36222466,105660.0,105650.0,1.19371047]
[1749948620645,0.35334204,105660.0,105650.0,1.28985969]
[1749948620893,0.02664949,105660.0,105650.0,1.38610145]
[1749948621094,0.01776687,105660.0,105650.0,1.38610145]
[1749948621259,0.02664948,105660.0,105650.0,1.38610145]
[1749948621449,0.36664948,105660.0,105650.0,1.38610145]
[1749948621658,0.36664947,105660.0,105650.0,1.38610145]
[1749948622860,0.36664947,105660.0,105650.0,1.28995223]
[1749948623635,0.36664945,105660.0,105650.0,1.28995223]
[1749948623848,0.35776687,105660.0,105650.0,1.28995223]
[1749948624207,0.36664944,105660.0,105650.0,1.28995223]
[1749948624837,0.36664944,105660.0,105650.0,0.84583954]
[1749948625059,0.81076213,105660.0,105650.0,0.84583954]
[1749948625450,0.81076213,105660.0,105650.0,0.84578051]
[1749948626270,0.80187956,105660.0,105650.0,0.84578051]
[1749948626471,0.81076213,105660.0,105650.0,0.84578051]
[1749948626670,0.80187956,105660.0,105650.0,0.84578051]
[1749948627088,0.81076213,105660.0,105650.0,0.84578051]
[1749948627426,0.80187956,105660.0,105650.0,0.84578051]
[1749948627671,0.81076213,105660.0,105650.0,0.84578051]
[1749948628032,0.81076212,105660.0,105650.0,0.84578051]
[1749948628539,0.36664943,105660.0,105650.0,0.84578051]
[1749948628734,0.81076213,105660.0,105650.0,0.84578051]
[1749948629449,0.80187956,105660.0,105650.0,0.84578051]
[1749948629659,0.81134307,105660.0,105650.0,0.69238051]
[1749948629863,0.82022564,105660.0,105650.0,0.71695875]
[1749948630075,0.82774307,105660.0,105650.0,0.71695875]
[1749948630661,0.37416687,105660.0,105650.0,0.69427435]
[1749948630865,0.82022566,105660.0,105650.0,0.69427435]
[1749948631803,0.81134307,105660.0,105650.0,0.69427435]
[1749948632236,0.82022648,105660.0,105650.0,0.69427435]
[1749948632728,0.81134307,105660.0,105650.0,0.69427435]
[1749948632931,0.82022648,105660.0,105650.0,0.69427435]
[1749948633135,0.81134307,105660.0,105650.0,0.69427435]
[1749948633341,0.82022648,105660.0,105650.0,0.69427435]
[1749948634013,0.82969017,105660.0,105650.0,0.69427435]
[1749948634421,0.82022648,105660.0,105650.0,0.69427435]
[1749948635083,0.82022648,105660.0,105650.0,0.54095435]
[1749948635493,0.82969017,105660.0,105650.0,0.54095435]
[1749948635707,0.82022648,105660.0,105650.0,0.69427435]
[1749948636332,0.81134307,105660.0,105650.0,0.70957435]
[1749948636506,0.82022648,105660.0,105650.0,0.70957435]
[1749948637476,0.82969017,105660.0,105650.0,0.70957435]
[1749948638085,0.81134307,105660.0,105650.0,0.70957435]
[1749948638286,0.82022648,105660.0,105650.0,0.70957435]
[1749948639072,0.82022585,105660.0,105650.0,0.70957435]
[1749948639232,0.36664965,105660.0,105650.0,0.76011901]
[1749948639406,0.82022585,105660.0,105650.0,0.76011901]
[1749948639612,0.80187956,105660.0,105650.0,0.76011901]
[1749948640205,0.81076231,105660.0,105650.0,0.76011901]
[1749948640407,0.36664962,105660.0,105650.0,0.72507435]
[1749948640608,0.36664962,105660.0,105650.0,0.82131611]
[1749948640814,0.35776687,105660.0,105650.0,0.82131611]
[1749948641411,0.36664962,105660.0,105650.0,0.82131611]
[1749948641553,0.35776687,105660.0,105650.0,0.82131611]
[1749948641757,0.36664962,105660.0,105650.0,0.82131611]
[1749948642166,0.80187956,105660.0,105650.0,0.82131611]
[1749948642375,0.81076231,105660.0,105650.0,0.82131611]
[1749948642980,0.36664962,105660.0,105650.0,0.82131611]
[1749948643275,0.35776687,105660.0,105650.0,0.82131611]
[1749948643599,0.36664962,105660.0,105650.0,0.82131611]
[1749948644590,0.35776687,105660.0,105650.0,0.82131611]
[1749948644791,0.36664962,105660.0,105650.0,0.82131611]
[1749948645204,0.35776687,105660.0,105650.0,0.82131611]
[1749948645413,0.36664962,105660.0,105650.0,0.85890232]
[1749948645821,0.36664961,105660.0,105650.0,0.85890232]
[1749948646031,0.36664961,105660.0,105650.0,0.82131611]
[1749948646230,0.80187956,105660.0,105650.0,0.82131611]
[1749948646644,0.81076231,105660.0,105650.0,0.82131611]
[1749948646845,0.80187956,105660.0,105650.0,0.82131611]
[1749948647052,0.81076231,105660.0,105650.0,0.82131611]
[1749948647662,0.80187956,105660.0,105650.0,0.82131611]
[1749948647882,0.81076231,105660.0,105650.0,0.82131611]
[1749948648084,0.80187956,105660.0,105650.0,0.82131611]
[1749948648222,0.81076231,105660.0,105650.0,0.82131611]
[1749948648833,0.81076295,105660.0,105650.0,0.82131611]
[1749948649292,0.81076294,105660.0,105650.0,0.82131611]
[1749948649486,0.80187956,105660.0,105650.0,0.82131611]
[1749948649665,0.81076295,105660.0,105650.0,0.82131611]
[1749948649864,0.80187956,105660.0,105650.0,0.82131611]
[1749948650585,0.81076294,105660.0,105650.0,0.82131611]
[1749948651213,0.81076288,105660.0,105650.0,0.82131611]
[1749948651425,0.80187956,105660.0,105650.0,0.82131611]
[1749948651857,0.81076287,105660.0,105650.0,0.82131611]
[1749948652382,0.35776687,105660.0,105650.0,0.82131611]
[1749948652583,0.81076287,105660.0,105650.0,0.82131611]
[1749948652784,0.81076287,105660.0,105650.0,0.82132436]
[1749948653367,0.80187956,105660.0,105650.0,0.82132436]
[1749948653506,0.81076287,105660.0,105650.0,0.82132436]
[1749948654492,0.80187956,105660.0,105650.0,0.82132436]
[1749948654700,0.81076287,105660.0,105650.0,0.82132436]
[1749948654923,0.82022638,105660.0,105650.0,0.82132436]
[1749948655120,0.81134307,105660.0,105650.0,0.82132436]
[1749948655300,0.79299634,105660.0,105650.0,0.82132436]
[1749948655997,0.80187965,105660.0,105650.0,0.82132436]
[1749948656236,0.79299634,105660.0,105650.0,0.82132436]
[1749948656642,0.80187964,105660.0,105650.0,0.82132436]
[1749948657274,0.80187963,105660.0,105650.0,0.82132436]
[1749948657486,0.80187964,105660.0,105650.0,0.82132436]
[1749948657904,0.79299634,105660.0,105650.0,0.82132436]
[1749948658106,0.35776695,105660.0,105650.0,1.26543705]
[1749948658226,0.35776695,105660.0,105650.0,1.27642224]
[1749948659557,0.34888365,105660.0,105650.0,1.27642224]
[1749948659768,0.35776521,105660.0,105650.0,1.27642224]
[1749948659982,0.34888365,105660.0,105650.0,1.27642224]
[1749948660226,0.35776521,105660.0,105650.0,1.27642224]
[1749948660885,0.34888365,105660.0,105650.0,1.27642224]
[1749948661104,0.35776521,105660.0,105650.0,1.27642224]
[1749948661993,0.35776521,105660.0,105650.0,1.12310224]
[1749948662217,0.34888365,105660.0,105650.0,1.27642224]
[1749948662654,0.35776521,105660.0,105650.0,1.27642224]
[1749948662848,0.34888365,105660.0,105650.0,1.27642224]
[1749948663084,0.35776521,105660.0,105650.0,1.27642224]
[1749948663439,0.34888365,105660.0,105650.0,1.27642224]
[1749948663665,0.35776521,105660.0,105650.0,1.27642224]
[1749948664279,0.34888365,105660.0,105650.0,1.27642224]
[1749948664700,0.35776521,105660.0,105650.0,1.27642224]
[1749948664903,0.35776521,105660.0,105650.0,1.12310224]
[1749948665324,0.34888365,105660.0,105650.0,1.27642224]
[1749948665928,0.35776521,105660.0,105650.0,1.27642224]
[1749948666135,0.34888365,105660.0,105650.0,1.27642224]
[1749948666585,0.3577652,105660.0,105650.0,1.27642224]
[1749948666787,0.35776521,105660.0,105650.0,1.27642224]
[1749948667001,0.34888365,105660.0,105650.0,1.27642224]
[1749948667345,0.35776521,105660.0,105650.0,0.83230955]
[1749948667590,0.34888365,105660.0,105650.0,0.82132436]
[1749948668041,0.35776521,105660.0,105650.0,0.82132436]
[1749948668494,0.34888365,105660.0,105650.0,0.82132436]
[1749948668706,0.35776521,105660.0,105650.0,0.82132436]
[1749948668938,0.34888365,105660.0,105650.0,0.82132436]
[1749948669144,0.35776695,105660.0,105650.0,0.82132436]
[1749948669662,0.34888365,105660.0,105650.0,0.66800436]
[1749948669866,0.34888365,105660.0,105650.0,0.82128436]
[1749948670021,0.35776697,105660.0,105650.0,0.82128436]
[1749948671416,0.35776698,105660.0,105650.0,0.82128436]
[1749948672171,0.34888365,105660.0,105650.0,0.66800436]
[1749948672360,0.79299634,105660.0,105650.0,0.80578436]
[1749948672819,0.80187967,105660.0,105650.0,0.80578436]
[1749948673906,0.01289573,105660.0,105650.0,1.15760506]
[1749948674111,0.68856653,105700.0,105690.0,0.25011647]
[1749948674112,0.63789763,105700.0,105690.0,0.25011647]
[1749948674338,0.61332312,105700.0,105690.0,1.23458361]
[1749948674572,0.62451475,105700.0,105690.0,1.42714361]
[1749948674786,0.60675153,105700.0,105690.0,0.39735507]
[1749948674994,0.62567166,105700.0,105690.0,0.39735507]
[1749948675198,0.62567166,105700.0,105690.0,1.03402776]
[1749948675375,0.61621146,105700.0,105690.0,1.10120135]
[1749948675578,0.62567157,105700.0,105690.0,1.10120135]
[1749948675791,0.62867157,105700.0,105690.0,1.10120135]
[1749948675982,0.63813159,105700.0,105690.0,0.65908866]
[1749948676192,0.62567148,105700.0,105690.0,1.03402776]
[1749948676363,0.62567148,105700.0,105690.0,1.03702776]
[1749948676776,0.61621146,105700.0,105690.0,1.03702776]
[1749948676950,0.60675153,105700.0,105690.0,1.03702776]
[1749948677162,0.61621146,105700.0,105690.0,1.01811931]
[1749948677364,0.60675153,105700.0,105690.0,1.01811931]
[1749948677639,0.62567157,105700.0,105690.0,1.02211931]
[1749948677801,0.62567166,105700.0,105690.0,1.02211931]
[1749948678026,0.62567148,105700.0,105690.0,0.57800662]
[1749948678205,0.63513168,105700.0,105690.0,1.02211931]
[1749948678405,0.62567148,105700.0,105690.0,1.02211931]
[1749948678579,0.62567157,105700.0,105690.0,1.02211931]
[1749948678778,0.62567148,105700.0,105690.0,1.02211931]
[1749948679380,0.61621146,105700.0,105690.0,1.02211931]
[1749948679645,0.62567157,105700.0,105690.0,1.02211931]
[1749948679866,0.61621146,105700.0,105690.0,1.02211931]
[1749948680062,0.60675153,105700.0,105690.0,1.02211931]
[1749948680326,0.60675153,105700.0,105690.0,0.82955931]
[1749948680545,0.60675153,105700.0,105690.0,1.02211931]
[1749948680748,0.60675153,105700.0,105690.0,0.82955931]
[1749948680953,0.60675153,105700.0,105690.0,1.77075662]
[1749948681164,0.60675153,105700.0,105690.0,1.32664393]
[1749948681585,0.60675153,105700.0,105690.0,1.77075662]
[1749948684648,0.60675153,105700.0,105690.0,1.78529747]
[1749948685853,0.60675153,105700.0,105690.0,1.78525747]
[1749948686655,0.31185153,105700.0,105690.0,2.22937016]
[1749948686850,0.00494797,105710.0,105700.0,0.26393672]
[1749948687057,0.00494797,105710.0,105700.0,0.99871886]
[1749948687259,0.04392444,105730.0,105720.0,0.21755472]
[1749948687455,0.03455645,105730.0,105720.0,0.91114917]
[1749948687701,0.04896027,105730.0,105720.0,0.91114917]
[1749948687979,0.04896027,105730.0,105720.0,0.50631648]
[1749948688175,0.05841787,105730.0,105720.0,0.95042917]
[1749948688379,0.03004543,105730.0,105720.0,0.77340917]
[1749948688532,0.03004534,105730.0,105720.0,0.96592917]
[1749948688730,0.03004534,105730.0,105720.0,0.77340917]
[1749948689100,0.03004534,105730.0,105720.0,0.52181648]
[1749948689311,0.03950276,105730.0,105720.0,0.52381648]
[1749948689512,0.03892314,105730.0,105720.0,0.52381648]
[1749948689646,0.03892299,105730.0,105720.0,0.52381648]
[1749948690055,0.03004534,105730.0,105720.0,0.52481648]
[1749948690255,0.02946552,105730.0,105720.0,0.54937918]
[1749948690437,0.02946552,105730.0,105720.0,0.9599576]
[1749948690642,0.02946552,105730.0,105720.0,0.97449845]
[1749948690643,0.02946518,105730.0,105720.0,0.97449845]
[1749948690865,0.02058801,105730.0,105720.0,0.78197845]
[1749948691044,0.02058801,105730.0,105720.0,0.80445135]
[1749948691451,0.02946419,105730.0,105720.0,0.99713135]
[1749948691676,0.02946417,105730.0,105720.0,0.99413135]
[1749948691879,0.02058801,105730.0,105720.0,0.99913135]
[1749948692104,0.02946417,105730.0,105720.0,0.99913135]
[1749948692301,0.02946417,105730.0,105720.0,0.63398885]
[1749948692521,0.02058801,105730.0,105720.0,0.83542727]
[1749948692864,0.02946418,105730.0,105720.0,0.99909135]
[1749948693284,0.02946436,105730.0,105720.0,1.01806135]
[1749948694466,0.02058801,105730.0,105720.0,1.01806135]
[1749948694847,0.02946434,105730.0,105720.0,1.01806135]
[1749948695258,0.02058801,105730.0,105720.0,1.01806135]
[1749948695515,0.02946434,105730.0,105720.0,1.01806135]
[1749948696040,0.02058801,105730.0,105720.0,1.41213977]
[1749948696239,0.00945277,105780.0,105770.0,0.2269058]
[1749948696447,0.44123985,105780.0,105770.0,0.21745204]
[1749948696722,0.44123985,105780.0,105760.0,0.18909211]
[1749948696723,0.2174516,105770.0,105760.0,0.18909211]
[1749948696928,0.2174516,105770.0,105740.0,0.18909211]
[1749948696929,0.01891189,105750.0,105740.0,0.18909211]
[1749948697135,0.44721975,105750.0,105740.0,0.53827855]
[1749948697325,0.59928583,105760.0,105750.0,0.20803736]
[1749948697326,0.02535474,105760.0,105750.0,0.20803736]
[1749948697499,0.44721875,105760.0,105750.0,0.46713484]
[1749948697700,0.66188153,105760.0,105750.0,0.19858146]
[1749948697937,0.2678033,105760.0,105750.0,0.35198146]
[1749948698112,0.24914455,105760.0,105750.0,0.35202137]
[1749948698275,0.24856446,105760.0,105750.0,0.18912529]
[1749948698475,0.23968918,105760.0,105750.0,0.20803745]
[1749948698733,0.06003714,105760.0,105750.0,0.38038916]
[1749948698952,0.07191244,105760.0,105750.0,0.37093335]
[1749948699288,0.26101995,105760.0,105750.0,0.37089335]
[1749948699490,0.07191254,105760.0,105750.0,0.38034916]
[1749948699687,0.07191254,105760.0,105750.0,0.37089335]
[1749948699949,0.06303714,105760.0,105750.0,0.38034916]
[1749948700106,0.07191253,105760.0,105750.0,0.38034916]
[1749948700530,0.06403714,105760.0,105750.0,0.37089317]
[1749948700924,0.04512622,105760.0,105750.0,0.3803488]
[1749948701237,0.07349161,105760.0,105750.0,0.3803488]
[1749948701443,0.082367,105760.0,105750.0,0.3803488]
[1749948701934,0.07349161,105760.0,105750.0,0.3803488]
[1749948702160,0.082367,105760.0,105750.0,0.3803488]
[1749948702364,0.06403633,105760.0,105750.0,0.3803488]
[1749948702571,0.07291171,105760.0,105750.0,0.2269488]
[1749948702775,0.07291171,105760.0,105750.0,0.3803088]
[1749948703222,0.07291171,105760.0,105750.0,0.40279087]
[1749948703458,0.0734917,105760.0,105750.0,0.40279087]
[1749948703656,0.08236708,105760.0,105750.0,0.40279114]
[1749948703863,0.07291171,105760.0,105750.0,0.41224677]
[1749948704302,0.06345652,105760.0,105750.0,0.41224677]
[1749948704507,0.06403624,105760.0,105750.0,0.41224677]
[1749948704729,0.08236667,105760.0,105750.0,0.41224677]
[1749948705563,0.07349143,105760.0,105750.0,0.41224677]
[1749948705964,0.07291158,105760.0,105750.0,0.41224677]
[1749948707322,0.03178491,105760.0,105750.0,0.41224677]
[1749948707528,0.04124001,105760.0,105750.0,0.41224677]
[1749948707731,0.04115115,105760.0,105750.0,0.41224677]
[1749948707935,0.03236476,105760.0,105750.0,0.41224677]
[1749948708183,0.04115115,105760.0,105750.0,0.46514203]
[1749948708602,0.01278639,105760.0,105750.0,0.46514203]
[1749948708805,0.03169578,105760.0,105750.0,0.46514203]
[1749948709008,0.0411507,105760.0,105750.0,0.46514203]
[1749948709214,0.04181941,105760.0,105750.0,0.41224677]
[1749948709421,0.02290939,105760.0,105750.0,0.41224677]
[1749948709625,0.02224095,105760.0,105750.0,0.41224677]
[1749948710049,0.01278637,105760.0,105750.0,0.41224677]
[1749948710455,0.004,105760.0,105750.0,0.44058308]
[1749948710693,0.01278604,105760.0,105750.0,0.44058308]
[1749948710895,0.01278604,105760.0,105750.0,0.50476266]
[1749948711103,0.01278605,105760.0,105750.0,0.50476266]
[1749948711307,0.01278618,105760.0,105750.0,0.48194213]
[1749948711512,0.004,105760.0,105750.0,0.48194213]
[1749948711711,0.004,105760.0,105750.0,0.45016255]
[1749948711848,0.01278619,105760.0,105750.0,0.45678308]
[1749948712050,0.01773057,105760.0,105750.0,0.55302484]
[1749948712326,0.01773057,105760.0,105750.0,0.56922484]
[1749948712529,0.00894444,105760.0,105750.0,0.51201406]
[1749948712733,0.0177305,105760.0,105750.0,0.57904557]
[1749948712887,0.00894444,105760.0,105750.0,0.57904557]
[1749948713323,0.00894444,105760.0,105750.0,0.65466351]
[1749948713538,0.00894444,105760.0,105750.0,0.69244526]
[1749948713735,0.00894444,105760.0,105750.0,0.78859448]
[1749948714565,0.01781922,105760.0,105750.0,0.69244526]
[1749948714742,0.0178191,105760.0,105750.0,0.65456822]
[1749948714934,0.01781899,105760.0,105750.0,0.65456822]
[1749948715150,0.01781888,105760.0,105750.0,0.65456822]
[1749948715375,0.01781877,105760.0,105750.0,0.65456822]
[1749948715609,0.01781887,105760.0,105750.0,0.65456822]
[1749948715834,0.01781902,105760.0,105750.0,0.75071744]
[1749948716097,0.01781902,105760.0,105750.0,0.7113308]
[1749948716298,0.01781901,105760.0,105750.0,0.72080734]
[1749948716716,0.00894444,105760.0,105750.0,0.72080734]
[1749948716944,0.01781901,105760.0,105750.0,0.72080734]
[1749948717155,0.01781901,105760.0,105750.0,0.77507672]
[1749948717374,0.00894444,105760.0,105750.0,0.77507672]
[1749948717586,0.01781901,105760.0,105750.0,0.76032734]
[1749948717813,0.00894444,105760.0,105750.0,0.76032734]
[1749948718038,0.01781901,105760.0,105750.0,0.76032734]
[1749948718313,0.00894444,105760.0,105750.0,0.76032734]
[1749948718744,0.01781894,105760.0,105750.0,0.85647656]
[1749948719159,0.01781894,105760.0,105750.0,1.21277323]
[1749948719381,0.01781893,105760.0,105750.0,1.21277323]
[1749948719579,0.01781894,105760.0,105750.0,1.25039961]
[1749948719784,0.01781894,105760.0,105750.0,1.15425039]
[1749948719989,0.01781894,105760.0,105750.0,1.11662401]
[1749948720190,0.01781892,105760.0,105750.0,0.72254559]
[1749948720392,0.01781893,105760.0,105750.0,0.72254559]
[1749948721042,0.01781881,105760.0,105750.0,0.72254559]
[1749948721502,0.00894444,105760.0,105750.0,0.72254559]
[1749948722050,0.01781889,105760.0,105750.0,0.72254559]
[1749948722256,0.01781889,105760.0,105750.0,0.76321521]
[1749948722645,0.00894444,105760.0,105750.0,0.76321521]
[1749948722841,0.01781874,105760.0,105750.0,0.76321521]
[1749948723043,0.00894444,105760.0,105750.0,0.76321521]
[1749948723472,0.00894444,105760.0,105750.0,1.15729363]
[1749948723857,0.01781854,105760.0,105750.0,1.15729363]
[1749948724056,0.01781854,105760.0,105750.0,1.10053105]
[1749948724260,0.01481856,105760.0,105750.0,1.15700723]
[1749948724461,0.01381848,105760.0,105750.0,1.10153105]
[1749948724688,0.0138185,105760.0,105750.0,0.70745263]
[1749948724896,0.01381844,105760.0,105750.0,1.10353105]
[1749948725043,0.00494444,105760.0,105750.0,1.39843105]
[1749948725243,0.01381844,105760.0,105750.0,1.39843105]
[1749948726105,0.00494444,105760.0,105750.0,1.39843105]
[1749948726315,0.01381844,105760.0,105750.0,1.32281311]
[1749948726511,0.00494444,105760.0,105750.0,1.32281311]
[1749948726711,0.00494444,105760.0,105750.0,1.37929042]
[1749948728805,0.00494444,105760.0,105750.0,0.985212]
[1749948728980,0.00494444,105760.0,105750.0,1.37929042]
[1749948730251,0.00494444,105760.0,105750.0,0.985212]
[1749948730466,0.00494444,105760.0,105750.0,1.37929042]
[1749948730693,0.00494444,105760.0,105750.0,1.18613042]
[1749948730912,0.00494444,105760.0,105750.0,1.38053042]
[1749948731997,0.00494444,105760.0,105750.0,1.3398608]
[1749948732216,0.00494444,105760.0,105750.0,1.3399008]
[1749948733056,0.00494444,105760.0,105750.0,0.94582238]
[1749948733320,0.00494444,105760.0,105750.0,1.3588508]
[1749948734208,0.00494444,105760.0,105750.0,1.39649511]
[1749948735320,0.00494444,105760.0,105750.0,1.00241807]
[1749948736231,0.00494444,105760.0,105750.0,1.09856729]
[1749948736452,0.00494444,105760.0,105750.0,1.00241807]
[1749948737580,0.014399,105760.0,105750.0,0.80797807]
[1749948737805,0.02385365,105760.0,105750.0,0.97009807]
[1749948738016,0.02385365,105760.0,105750.0,0.91362076]
[1749948738231,0.014399,105760.0,105750.0,0.91362076]
[1749948739162,0.014399,105760.0,105750.0,0.9137331]
[1749948739624,0.00494444,105760.0,105750.0,0.9137331]
[1749948740036,0.014399,105760.0,105750.0,0.9137331]
[1749948740258,0.00494444,105760.0,105750.0,0.9137331]
[1749948741696,0.00494444,105760.0,105750.0,0.94336433]
[1749948741897,0.05898182,105770.0,105760.0,0.21747244]
[1749948742100,0.05898182,105770.0,105760.0,0.5191609]
[1749948742886,0.05898182,105770.0,105760.0,0.8140609]
[1749948743102,0.05898138,105770.0,105760.0,0.8140609]
[1749948743303,0.03422709,105770.0,105760.0,0.8140609]
[1749948743502,0.01832709,105770.0,105760.0,0.8140609]
[1749948743714,0.0287805,105770.0,105760.0,0.8140609]
[1749948743915,0.02878039,105770.0,105760.0,0.8140609]
[1749948744117,0.01990743,105770.0,105760.0,0.69710659]
[1749948744322,0.01045367,105770.0,105760.0,0.89142659]
[1749948744679,0.01045367,105770.0,105760.0,0.69710659]
[1749948744886,0.01045367,105770.0,105760.0,0.89138659]
[1749948745725,0.01045367,105770.0,105760.0,0.84053989]
[1749948745931,0.01045367,105770.0,105760.0,0.89140026]
[1749948746783,0.01045367,105770.0,105760.0,0.59650026]
[1749948749157,0.01990743,105770.0,105760.0,0.59650026]
[1749948749917,0.01045367,105770.0,105760.0,0.59650026]
[1749948751275,0.001,105770.0,105760.0,0.59650026]
[1749948751485,0.001,105770.0,105760.0,0.62920026]
[1749948752577,0.001,105770.0,105760.0,0.61280026]
[1749948753436,0.44401352,105770.0,105760.0,0.61280026]
[1749948754895,0.001,105770.0,105760.0,0.61280026]
[1749948755098,0.001,105770.0,105760.0,0.70894948]
[1749948756264,0.001,105770.0,105760.0,0.61280026]
[1749948756785,0.001,105770.0,105760.0,1.05581378]
[1749948757062,0.001,105770.0,105760.0,1.07101378]
[1749948760799,0.001,105770.0,105760.0,1.04275802]
[1749948764971,0.001,105770.0,105760.0,0.5997445]
[1749948765178,0.001,105770.0,105760.0,1.04275802]
[1749948765382,0.001,105770.0,105760.0,1.09811776]
[1749948766245,0.63375226,105810.0,105760.0,1.09811776]
[1749948766246,0.55655859,105850.0,105760.0,1.09811776]
[1749948766456,0.55655859,105850.0,105780.0,0.26742308]
[1749948766457,0.01899407,105790.0,105780.0,0.26742308]